bitfinex/quotes_BTCUSD_20250615
["timestamp","ask_amount","ask_price","bid_price","bid_amount"]
[1749976077065,1.29995488,105420.0,105410.0,0.2882038]
[1749976077275,1.31892606,105420.0,105410.0,0.27039758]
[1749976077485,1.31892606,105420.0,105410.0,0.2882037]
[1749976077698,1.32841192,105420.0,105410.0,0.27039758]
[1749976077914,1.51810099,105420.0,105410.0,0.27871757]
[1749976078603,1.51810099,105420.0,105410.0,0.26091145]
[1749976078823,1.51810099,105420.0,105410.0,0.27871757]
[1749976079042,1.50861558,105420.0,105410.0,0.27871757]
[1749976079244,1.50861558,105420.0,105410.0,0.26091145]
[1749976079455,1.50861558,105420.0,105410.0,0.27871757]
[1749976079716,1.50861558,105420.0,105410.0,0.26091145]
[1749976079938,1.50861558,105420.0,105410.0,0.27871757]
[1749976080370,1.5153299,105420.0,105410.0,0.27871757]
[1749976080586,1.5153299,105420.0,105410.0,0.26091145]
[1749976081051,1.5153299,105420.0,105410.0,0.2976901]
[1749976081281,1.4991299,105420.0,105410.0,0.27039776]
[1749976081498,1.4991299,105420.0,105410.0,0.28820388]
[1749976081716,1.4991299,105420.0,105410.0,0.27871757]
[1749976082145,1.4991299,105420.0,105410.0,0.27871749]
[1749976082382,1.4991299,105420.0,105410.0,0.27871744]
[1749976083574,1.30941258,105420.0,105410.0,0.27871744]
[1749976083779,1.29992645,105420.0,105410.0,0.29768988]
[1749976083993,1.30941213,105420.0,105410.0,0.29768988]
[1749976084221,1.30941213,105420.0,105410.0,0.29768985]
[1749976084484,1.30941213,105420.0,105410.0,0.2976823]
[1749976084895,1.30941168,105420.0,105410.0,0.2976823]
[1749976085148,1.31889736,105420.0,105410.0,0.27988389]
[1749976085582,1.31889736,105420.0,105410.0,0.2976823]
[1749976086342,1.31889736,105420.0,105410.0,0.27988389]
[1749976086566,1.31889736,105420.0,105410.0,0.2976823]
[1749976086797,1.31889736,105420.0,105410.0,0.27988389]
[1749976087010,1.31889736,105420.0,105410.0,0.2976823]
[1749976087850,1.32838313,105420.0,105410.0,0.2976823]
[1749976088056,1.32838313,105420.0,105410.0,0.29768222]
[1749976088258,1.32838313,105420.0,105410.0,0.27988389]
[1749976088972,1.31889736,105420.0,105410.0,0.29768228]
[1749976089188,1.31889736,105420.0,105410.0,0.27988389]
[1749976089392,1.32838313,105420.0,105410.0,0.29768228]
[1749976089837,1.32838313,105420.0,105410.0,0.27988389]
[1749976090049,1.32838313,105420.0,105410.0,0.29768228]
[1749976090259,1.51810108,105420.0,105410.0,0.28819615]
[1749976090504,1.50861558,105420.0,105410.0,0.28819615]
[1749976091127,1.50861558,105420.0,105410.0,0.28819616]
[1749976091346,1.50861558,105420.0,105410.0,0.28819617]
[1749976091963,1.50861558,105420.0,105410.0,0.28819616]
[1749976092815,1.50861558,105420.0,105410.0,0.27039776]
[1749976093027,1.52431558,105420.0,105410.0,0.28819616]
[1749976093440,1.52431558,105420.0,105410.0,0.28819617]
[1749976093872,1.52431558,105420.0,105410.0,0.27039776]
[1749976094075,1.52431558,105420.0,105410.0,0.28819617]
[1749976094295,1.52431558,105420.0,105410.0,0.27039776]
[1749976094711,1.52431558,105420.0,105410.0,0.28819617]
[1749976094915,1.52431558,105420.0,105410.0,0.28819616]
[1749976095571,1.52431558,105420.0,105410.0,0.27870985]
[1749976096742,1.5148299,105420.0,105410.0,0.27871004]
[1749976096961,1.5148299,105420.0,105410.0,0.26091163]
[1749976097375,1.5308299,105420.0,105410.0,0.25142505]
[1749976097587,1.5308299,105420.0,105410.0,0.26922346]
[1749976098028,1.5308299,105420.0,105410.0,0.27871004]
[1749976098459,1.5308299,105420.0,105410.0,0.26091163]
[1749976100720,1.5308299,105420.0,105410.0,0.25142505]
[1749976101454,1.5308299,105420.0,105410.0,0.21190505]
[1749976101673,1.51185827,105420.0,105410.0,0.22376197]
[1749976102108,1.51185827,105420.0,105410.0,0.22376212]
[1749976102312,1.51185827,105420.0,105410.0,0.20596307]
[1749976102519,1.51185827,105420.0,105410.0,0.22376214]
[1749976102733,1.51185827,105420.0,105410.0,0.20596307]
[1749976102932,1.51185827,105420.0,105410.0,0.22376214]
[1749976103343,1.51185827,105420.0,105410.0,0.20596307]
[1749976103681,1.51185827,105420.0,105410.0,0.22376285]
[1749976104103,1.51185827,105420.0,105410.0,0.22376032]
[1749976105106,1.51185827,105420.0,105410.0,0.20596307]
[1749976105723,1.51185827,105420.0,105410.0,0.22376043]
[1749976105929,1.51185827,105420.0,105410.0,0.22376044]
[1749976106394,1.51185827,105420.0,105410.0,0.20596307]
[1749976106802,1.51185827,105420.0,105410.0,0.22376044]
[1749976108194,1.49585827,105420.0,105410.0,0.21544983]
[1749976108605,1.49585827,105420.0,105410.0,0.2332472]
[1749976109079,1.49585827,105420.0,105410.0,0.21544983]
[1749976109508,1.49585827,105420.0,105410.0,0.2332472]
[1749976109711,1.49585827,105420.0,105410.0,0.21544983]
[1749976109913,1.49585827,105420.0,105410.0,0.2332472]
[1749976110088,1.51205827,105420.0,105410.0,0.21544983]
[1749976110292,1.51205827,105420.0,105410.0,0.2332472]
[1749976110495,1.51205827,105420.0,105410.0,0.42298251]
[1749976110706,1.51205827,105420.0,105410.0,0.40518514]
[1749976111082,1.51205827,105420.0,105410.0,0.42298251]
[1749976111270,1.51205827,105420.0,105410.0,0.22376044]
[1749976112073,1.51205827,105420.0,105410.0,0.20596307]
[1749976112285,1.51205827,105420.0,105410.0,0.22376044]
[1749976113518,1.51205827,105420.0,105410.0,0.20596307]
[1749976113722,1.51205827,105420.0,105410.0,0.22376044]
[1749976114139,1.51205827,105420.0,105410.0,0.20596307]
[1749976114796,1.51205827,105420.0,105410.0,0.22377076]
[1749976115198,1.51205827,105420.0,105410.0,0.20596307]
[1749976115625,1.51205827,105420.0,105410.0,0.22377076]
[1749976116615,1.51205827,105420.0,105410.0,0.20596307]
[1749976116824,1.51205827,105420.0,105410.0,0.22377076]
[1749976117484,1.51205827,105420.0,105410.0,0.20596307]
[1749976117867,1.51205827,105420.0,105410.0,0.22377076]
[1749976119342,1.51205827,105420.0,105410.0,0.20596307]
[1749976119653,1.51205827,105420.0,105410.0,0.22377076]
[1749976119833,1.51205827,105420.0,105410.0,0.23325752]
[1749976120097,1.51205827,105420.0,105410.0,0.21544983]
[1749976120514,1.51205827,105420.0,105410.0,0.22377076]
[1749976122009,1.53632858,105420.0,105410.0,0.21544983]
[1749976122220,1.51205827,105420.0,105410.0,0.42299283]
[1749976122435,1.51205827,105420.0,105410.0,0.4324795]
[1749976122885,1.51205827,105420.0,105410.0,0.42299283]
[1749976123096,1.51205827,105420.0,105410.0,0.4324795]
[1749976123505,1.51205827,105420.0,105410.0,0.41467181]
[1749976123749,1.51205827,105420.0,105410.0,0.4324795]
[1749976123958,1.51205827,105420.0,105410.0,0.41467181]
[1749976124206,1.51205827,105420.0,105410.0,0.4324795]
[1749976124856,1.51205827,105420.0,105410.0,0.41467181]
[1749976125071,1.51205827,105420.0,105410.0,0.4324795]
[1749976125357,1.51205827,105420.0,105410.0,0.41467181]
[1749976125566,1.51205827,105420.0,105410.0,0.43247769]
[1749976126423,1.51205827,105420.0,105410.0,0.41467181]
[1749976126637,1.51205827,105420.0,105410.0,0.43247769]
[1749976127692,1.51205827,105420.0,105410.0,0.41467181]
[1749976130280,1.54042555,105420.0,105410.0,0.41467181]
[1749976130566,1.54042555,105420.0,105410.0,0.43247769]
[1749976131388,1.54042555,105420.0,105410.0,0.41467181]
[1749976131593,1.54042555,105420.0,105410.0,0.43247769]
[1749976131878,1.54042555,105420.0,105410.0,0.41467181]
[1749976132086,1.54042555,105420.0,105410.0,0.43247769]
[1749976132704,1.54042555,105420.0,105410.0,0.41467181]
[1749976132910,1.54042555,105420.0,105410.0,0.43247769]
[1749976133455,1.54042555,105420.0,105410.0,0.41467181]
[1749976133734,1.54042555,105420.0,105410.0,0.4324795]
[1749976134149,1.54042555,105420.0,105410.0,0.41467181]
[1749976134344,1.54042555,105420.0,105410.0,0.4324795]
[1749976134751,1.54042555,105420.0,105410.0,0.41467181]
[1749976135174,1.54042555,105420.0,105410.0,0.4324795]
[1749976135601,1.54042555,105420.0,105410.0,0.43247951]
[1749976136216,1.54042555,105420.0,105410.0,0.41467181]
[1749976136426,1.54042555,105420.0,105410.0,0.43247951]
[1749976136920,1.54042555,105420.0,105410.0,0.43247925]
[1749976137529,1.54042555,105420.0,105410.0,0.41467181]
[1749976138184,1.54042555,105420.0,105410.0,0.43247925]
[1749976139678,1.54042555,105420.0,105410.0,0.41467181]
[1749976139900,1.54042555,105420.0,105410.0,0.43247925]
[1749976141239,1.54042555,105420.0,105410.0,0.41467181]
[1749976141444,1.54042555,105420.0,105410.0,0.43247926]
[1749976141646,1.54042555,105420.0,105410.0,0.41467181]
[1749976141867,1.52422555,105420.0,105410.0,0.41467181]
[1749976142087,1.52422555,105420.0,105410.0,0.43247925]
[1749976143144,1.49585827,105420.0,105410.0,0.43247912]
[1749976143355,1.49585827,105420.0,105410.0,0.41467181]
[1749976143563,1.49585827,105420.0,105410.0,0.43247907]
[1749976143765,1.49585827,105420.0,105410.0,0.43247903]
[1749976143969,1.49585827,105420.0,105410.0,0.43247906]
[1749976144179,1.49585827,105420.0,105410.0,0.41467181]
[1749976144824,1.49585827,105420.0,105410.0,0.43247908]
[1749976146346,1.49585827,105420.0,105410.0,0.41467181]
[1749976146551,1.49585827,105420.0,105410.0,0.43247908]
[1749976147413,1.49585827,105420.0,105410.0,0.41467181]
[1749976147626,1.49585827,105420.0,105410.0,0.43247908]
[1749976147833,1.49585827,105420.0,105410.0,0.41467181]
[1749976148042,1.49585827,105420.0,105410.0,0.43247908]
[1749976149291,1.49585827,105420.0,105410.0,0.41467181]
[1749976149519,1.49585827,105420.0,105410.0,0.43247909]
[1749976149912,1.49585827,105420.0,105410.0,0.43247908]
[1749976150157,1.49585827,105420.0,105410.0,0.43247924]
[1749976150365,1.52422555,105420.0,105410.0,0.41467181]
[1749976150573,1.52422555,105420.0,105410.0,0.43247928]
[1749976150796,1.52422555,105420.0,105410.0,0.22377054]
[1749976151011,1.53952555,105420.0,105410.0,0.41338601]
[1749976151210,1.53952555,105420.0,105410.0,0.2236507]
[1749976151432,1.53952555,105420.0,105410.0,0.22365073]
[1749976151858,1.53952555,105420.0,105410.0,0.42287271]
[1749976152085,1.53952555,105420.0,105410.0,0.42287268]
[1749976152304,1.53952555,105420.0,105410.0,0.41338601]
[1749976152529,1.53952555,105420.0,105410.0,0.22365071]
[1749976152745,1.53952555,105420.0,105410.0,0.22365073]
[1749976152954,1.53952555,105420.0,105410.0,0.20584307]
[1749976153203,1.53952555,105420.0,105410.0,0.22365073]
[1749976153624,1.53952555,105420.0,105410.0,0.20584307]
[1749976153834,1.53952555,105420.0,105410.0,0.22365073]
[1749976154481,1.53952555,105420.0,105410.0,0.22365072]
[1749976154881,1.53952555,105420.0,105410.0,0.21532983]
[1749976155155,1.53952555,105420.0,105410.0,0.23313744]
[1749976155358,1.53952555,105420.0,105410.0,0.21532983]
[1749976155558,1.53952555,105420.0,105410.0,0.23313774]
[1749976155765,1.53952555,105420.0,105410.0,0.21532983]
[1749976155968,1.53952555,105420.0,105410.0,0.23313774]
[1749976157057,1.53952555,105420.0,105410.0,0.21532983]
[1749976157243,1.53952555,105420.0,105410.0,0.23313774]
[1749976157409,1.53952555,105420.0,105410.0,0.21532983]
[1749976157618,1.53952555,105420.0,105410.0,0.23313774]
[1749976158469,1.53952555,105420.0,105410.0,0.20584307]
[1749976159321,1.53952555,105420.0,105410.0,0.22365098]
[1749976160478,1.53952555,105420.0,105410.0,0.20584307]
[1749976160706,1.53952555,105420.0,105410.0,0.23313774]
[1749976161132,1.53952555,105420.0,105410.0,0.21532983]
[1749976161334,1.53952555,105420.0,105410.0,0.23313774]
[1749976161567,1.53952555,105420.0,105410.0,0.20584307]
[1749976162024,1.53952555,105420.0,105410.0,0.22365098]
[1749976163119,1.53952555,105420.0,105410.0,0.03049103]
[1749976163330,1.53952555,105420.0,105410.0,0.22365106]
[1749976163537,1.53952555,105420.0,105410.0,0.0304911]
[1749976163768,1.53952555,105420.0,105410.0,0.22365118]
[1749976163978,1.53952555,105420.0,105410.0,0.22365119]
[1749976164183,1.53952555,105420.0,105410.0,0.22365121]
[1749976164385,1.53952555,105420.0,105410.0,0.06993121]
[1749976165034,1.56379586,105420.0,105410.0,0.06993121]
[1749976165247,1.53952555,105420.0,105410.0,0.05212307]
[1749976165469,1.53952555,105420.0,105410.0,0.06993121]
[1749976165678,1.53952555,105420.0,105410.0,0.05212307]
[1749976165899,0.64825221,105420.0,105410.0,0.05212307]
[1749976166112,1.53952555,105420.0,105410.0,0.05212307]
[1749976166317,1.53952555,105420.0,105410.0,0.06993121]
[1749976167137,1.53952555,105420.0,105410.0,0.04993121]
[1749976167355,1.53952555,105420.0,105410.0,0.03212307]
[1749976167533,1.53952555,105420.0,105410.0,0.0499312]
[1749976167761,1.56379586,105420.0,105410.0,0.0499312]
[1749976167945,1.53952555,105420.0,105410.0,0.03212307]
[1749976168606,1.53952555,105420.0,105410.0,0.04993121]
[1749976169060,1.53952555,105420.0,105410.0,0.03212307]
[1749976169399,1.53952555,105420.0,105410.0,0.04993121]
[1749976169775,1.53952555,105420.0,105410.0,0.03212307]
[1749976169971,1.53952555,105420.0,105410.0,0.04993121]
[1749976170551,1.52422555,105420.0,105410.0,0.04993121]
[1749976170757,1.52422555,105420.0,105410.0,0.03212307]
[1749976170968,1.52422555,105420.0,105410.0,0.0499312]
[1749976171176,1.52422555,105420.0,105410.0,0.04993121]
[1749976171383,0.63295221,105420.0,105410.0,0.03212307]
[1749976171563,1.50852555,105420.0,105410.0,0.04993164]
[1749976171805,1.50852555,105420.0,105410.0,0.03212307]
[1749976172437,1.50852555,105420.0,105410.0,0.04993085]
[1749976173031,1.50852555,105420.0,105410.0,0.03212307]
[1749976173847,1.50852555,105420.0,105410.0,0.04993085]
[1749976174078,1.50852555,105420.0,105410.0,0.03212307]
[1749976174285,1.50852555,105420.0,105410.0,0.04993085]
[1749976175266,1.50852555,105420.0,105410.0,0.03212307]
[1749976175492,1.50852555,105420.0,105410.0,0.04993085]
[1749976176570,1.50852555,105420.0,105410.0,0.04993102]
[1749976177013,1.50852555,105420.0,105410.0,0.05724795]
[1749976177226,0.64152252,105420.0,105410.0,0.05724826]
[1749976177429,1.50852555,105420.0,105410.0,0.05724826]
[1749976177653,0.00948649,105410.0,105400.0,0.42258651]
[1749976177860,0.00948649,105410.0,105400.0,0.57607655]
[1749976177861,0.45512316,105410.0,105400.0,0.57607655]
[1749976178063,0.47781698,105410.0,105400.0,0.57607655]
[1749976178735,0.48730356,105410.0,105400.0,0.57607653]
[1749976178954,0.48739364,105410.0,105400.0,0.57707646]
[1749976179166,0.48739364,105410.0,105400.0,0.55926827]
[1749976179375,0.48739364,105410.0,105400.0,0.57707646]
[1749976179580,0.49688004,105410.0,105400.0,0.57707646]
[1749976179787,0.49688004,105410.0,105400.0,0.55926827]
[1749976180021,0.49788004,105410.0,105400.0,0.57807646]
[1749976180202,0.49788004,105410.0,105400.0,0.56026827]
[1749976180432,0.49788004,105410.0,105400.0,0.57807646]
[1749976180639,0.50736635,105410.0,105400.0,0.56026827]
[1749976181074,0.50736635,105410.0,105400.0,0.57807647]
[1749976181504,0.51685257,105410.0,105400.0,0.57807647]
[1749976182114,0.51685257,105410.0,105400.0,0.56026827]
[1749976182339,0.51685257,105410.0,105400.0,0.57807647]
[1749976182563,0.51685257,105410.0,105400.0,0.56026827]
[1749976183186,0.51685257,105410.0,105400.0,0.57807647]
[1749976183646,0.51685257,105410.0,105400.0,0.56026827]
[1749976184475,0.51685257,105410.0,105400.0,0.57807647]
[1749976184683,0.51685257,105410.0,105400.0,0.56026827]
[1749976184911,0.51685257,105410.0,105400.0,0.57807647]
[1749976185346,0.51685257,105410.0,105400.0,0.56026827]
[1749976185553,0.51685302,105410.0,105400.0,0.56026827]
[1749976185980,0.51685302,105410.0,105400.0,0.57807647]
[1749976186848,0.51685302,105410.0,105400.0,0.56026827]
[1749976187061,0.51685302,105410.0,105400.0,0.57807647]
[1749976187718,0.51685302,105410.0,105400.0,0.56026827]
[1749976188369,0.51685302,105410.0,105400.0,0.57807647]
[1749976188995,0.51685302,105410.0,105400.0,0.56026827]
[1749976189218,0.51685302,105410.0,105400.0,0.57807647]
[1749976189427,0.51685302,105410.0,105400.0,0.56026827]
[1749976189638,0.51685302,105410.0,105400.0,0.57807647]
[1749976189851,0.51685302,105410.0,105400.0,0.56026827]
[1749976190293,0.51685302,105410.0,105400.0,0.57807647]
[1749976190526,0.51685302,105410.0,105400.0,0.57807646]
[1749976191614,0.51685302,105410.0,105400.0,0.56026827]
[1749976191827,0.51685302,105410.0,105400.0,0.57807646]
[1749976192233,0.51685302,105410.0,105400.0,0.56026827]
[1749976192440,0.51685302,105410.0,105400.0,0.57807646]
[1749976193513,0.51685302,105410.0,105400.0,0.56026827]
[1749976194346,0.51685302,105410.0,105400.0,0.57807646]
[1749976194890,0.51685302,105410.0,105400.0,0.56026827]
[1749976195097,0.51685302,105410.0,105400.0,0.57806968]
[1749976195659,0.50736635,105410.0,105400.0,0.56026827]
[1749976195869,0.50736635,105410.0,105400.0,0.57806968]
[1749976196071,0.50736635,105410.0,105400.0,0.56026827]
[1749976196491,0.50736635,105410.0,105400.0,0.57806968]
[1749976197114,0.50736635,105410.0,105400.0,0.56026827]
[1749976197536,0.50736635,105410.0,105400.0,0.57806968]
[1749976198355,0.50736635,105410.0,105400.0,0.56026827]
[1749976199396,0.50736635,105410.0,105400.0,0.57806968]
[1749976200142,0.50736635,105410.0,105400.0,0.56026827]
[1749976200367,0.50736635,105410.0,105400.0,0.57806968]
[1749976200788,0.49787977,105410.0,105400.0,0.57806968]
[1749976200983,0.4978795,105410.0,105400.0,0.56026827]
[1749976201235,0.4978795,105410.0,105400.0,0.57806964]
[1749976201451,0.4978795,105410.0,105400.0,0.56026827]
[1749976202055,0.48839292,105410.0,105400.0,0.5780696]
[1749976202257,0.48839292,105410.0,105400.0,0.5462296]
[1749976202467,0.49787941,105410.0,105400.0,0.34366266]
[1749976202677,0.49787941,105410.0,105400.0,0.53674945]
[1749976202888,0.50736599,105410.0,105400.0,0.34366945]
[1749976203103,0.52927941,105410.0,105400.0,0.52726269]
[1749976203310,0.52356599,105410.0,105400.0,0.52726271]
[1749976203518,0.52356599,105410.0,105400.0,0.50945457]
[1749976203720,0.52356599,105410.0,105400.0,0.52726271]
[1749976204136,0.52356599,105410.0,105400.0,0.50945457]
[1749976204344,0.52356599,105410.0,105400.0,0.52726271]
[1749976204768,0.52356599,105410.0,105400.0,0.50945457]
[1749976204977,0.52356599,105410.0,105400.0,0.52726271]
[1749976205206,0.52356599,105410.0,105400.0,0.50945457]
[1749976205408,0.52356599,105410.0,105400.0,0.52726271]
[1749976206271,0.52356599,105410.0,105400.0,0.50945457]
[1749976206532,0.52356599,105410.0,105400.0,0.52726271]
[1749976207276,0.52356599,105410.0,105400.0,0.50945457]
[1749976208000,0.52356599,105410.0,105400.0,0.52726271]
[1749976208826,0.49787941,105410.0,105400.0,0.33418271]
[1749976209085,0.49787941,105410.0,105400.0,0.52722271]
[1749976209307,0.50736599,105410.0,105400.0,0.54221457]
[1749976209757,0.49787941,105410.0,105400.0,0.54221457]
[1749976209974,0.50736599,105410.0,105400.0,0.5600227]
[1749976211073,0.50736599,105410.0,105400.0,0.56002271]
[1749976211914,0.50736599,105410.0,105400.0,0.54221457]
[1749976212146,0.50736599,105410.0,105400.0,0.56002271]
[1749976212819,0.49787941,105410.0,105400.0,0.56002271]
[1749976213247,0.49787941,105410.0,105400.0,0.54221457]
[1749976213462,0.49787941,105410.0,105400.0,0.56002271]
[1749976213810,0.49787941,105410.0,105400.0,0.52581457]
[1749976214013,0.48839292,105410.0,105400.0,0.52581457]
[1749976214230,0.4978795,105410.0,105400.0,0.54362271]
[1749976215616,0.4978795,105410.0,105400.0,0.52581457]
[1749976215822,0.4978795,105410.0,105400.0,0.54362271]
[1749976216748,0.49787941,105410.0,105400.0,0.54362271]
[1749976217662,0.49787941,105410.0,105400.0,0.52581457]
[1749976218100,0.49787941,105410.0,105400.0,0.54362271]
[1749976218764,0.50736599,105410.0,105400.0,0.54362271]
[1749976219242,0.49787941,105410.0,105400.0,0.54362271]
[1749976219452,0.49787941,105410.0,105400.0,0.50941457]
[1749976219670,0.49787941,105410.0,105400.0,0.5272223]
[1749976219908,0.49787941,105410.0,105400.0,0.52721518]
[1749976220109,0.49787941,105410.0,105400.0,0.50941457]
[1749976220757,0.49787941,105410.0,105400.0,0.52721509]
[1749976221011,0.49787941,105410.0,105400.0,0.50941457]
[1749976221207,0.49787941,105410.0,105400.0,0.52721509]
[1749976222057,0.49787941,105410.0,105400.0,0.50941457]
[1749976222260,0.49787941,105410.0,105400.0,0.52721508]
[1749976222604,0.49787941,105410.0,105400.0,0.52721509]
[1749976223456,0.49787941,105410.0,105400.0,0.50941457]
[1749976223681,0.49787941,105410.0,105400.0,0.52721509]
[1749976223892,0.48839292,105410.0,105400.0,0.50941457]
[1749976224097,0.49787941,105410.0,105400.0,0.52721508]
[1749976224309,0.49687941,105410.0,105400.0,0.50841457]
[1749976224716,0.49987941,105410.0,105400.0,0.50841457]
[1749976225330,0.49987941,105410.0,105400.0,0.50741457]
[1749976225536,0.50087941,105410.0,105400.0,0.50741457]
[1749976226502,0.50087941,105410.0,105400.0,0.52522221]
[1749976227057,0.50087941,105410.0,105400.0,0.50741457]
[1749976227531,0.50087941,105410.0,105400.0,0.5252222]
[1749976227765,0.50087941,105410.0,105400.0,0.50741457]
[1749976228460,0.50087941,105410.0,105400.0,0.52522221]
[1749976228686,0.50087941,105410.0,105400.0,0.50741457]
[1749976228911,0.50087941,105410.0,105400.0,0.52522221]
[1749976229378,0.50087941,105410.0,105400.0,0.50741457]
[1749976229598,0.50087941,105410.0,105400.0,0.52522221]
[1749976230762,0.50087941,105410.0,105400.0,0.50741457]
[1749976230981,0.50087941,105410.0,105400.0,0.52522221]
[1749976231646,0.50087941,105410.0,105400.0,0.50741457]
[1749976231930,0.50087941,105410.0,105400.0,0.52522221]
[1749976232158,0.51036599,105410.0,105400.0,0.50741457]
[1749976232388,0.51036599,105410.0,105400.0,0.5252222]
[1749976232888,0.51036599,105410.0,105400.0,0.3321822]
[1749976233154,0.51036599,105410.0,105400.0,0.52522256]
[1749976233348,0.51036599,105410.0,105400.0,0.52522257]
[1749976233546,0.51036599,105410.0,105400.0,0.50741457]
[1749976233752,0.51036599,105410.0,105400.0,0.52522242]
[1749976233960,0.51036599,105410.0,105400.0,0.50741457]
[1749976234168,0.51036599,105410.0,105400.0,0.52522251]
[1749976234632,0.51036599,105410.0,105400.0,0.50741457]
[1749976234866,0.51036599,105410.0,105400.0,0.52522251]
[1749976235546,0.51036599,105410.0,105400.0,0.50741457]
[1749976235973,0.51036599,105410.0,105400.0,0.52522251]
[1749976236961,0.51036599,105410.0,105400.0,0.50741457]
[1749976237207,0.51036599,105410.0,105400.0,0.52522251]
[1749976237453,0.51036599,105410.0,105400.0,0.50741457]
[1749976237703,0.51036599,105410.0,105400.0,0.5252225]
[1749976237951,0.51036599,105410.0,105400.0,0.50741457]
[1749976238444,0.51036599,105410.0,105400.0,0.52522251]
[1749976238944,0.51036599,105410.0,105400.0,0.50741457]
[1749976239189,0.51036599,105410.0,105400.0,0.52522251]
[1749976239694,0.51036599,105410.0,105400.0,0.50741457]
[1749976239948,0.51036599,105410.0,105400.0,0.52522251]
[1749976240217,0.50087941,105410.0,105400.0,0.52522251]
[1749976240469,0.05524274,105410.0,105400.0,0.52522251]
[1749976240687,0.47818559,105410.0,105400.0,0.52522251]
[1749976240903,0.50087941,105410.0,105400.0,0.52522251]
[1749976241338,0.50087941,105410.0,105400.0,0.50741457]
[1749976241567,0.50087941,105410.0,105400.0,0.52522251]
[1749976241780,0.50087941,105410.0,105400.0,0.50741457]
[1749976242222,0.50087941,105410.0,105400.0,0.52522251]
[1749976242431,0.50087941,105410.0,105400.0,0.50741457]
[1749976242643,0.50087941,105410.0,105400.0,0.52521933]
[1749976242878,0.50087941,105410.0,105400.0,0.52521932]
[1749976243088,0.50087941,105410.0,105400.0,0.50741457]
[1749976243340,0.50092572,105410.0,105400.0,0.52521933]
[1749976244190,0.50092572,105410.0,105400.0,0.50741457]
[1749976244846,0.50092572,105410.0,105400.0,0.52521933]
[1749976245691,0.50092572,105410.0,105400.0,0.50741457]
[1749976246135,0.50092572,105410.0,105400.0,0.52521933]
[1749976246768,0.50092572,105410.0,105400.0,0.50741457]
[1749976246984,0.50092572,105410.0,105400.0,0.52521933]
[1749976247844,0.50092572,105410.0,105400.0,0.50741457]
[1749976248076,0.50092572,105410.0,105400.0,0.52521932]
[1749976248523,0.50092572,105410.0,105400.0,0.52521933]
[1749976248745,0.50092572,105410.0,105400.0,0.50741457]
[1749976248959,0.50092572,105410.0,105400.0,0.52521933]
[1749976249182,0.50092572,105410.0,105400.0,0.50741457]
[1749976249433,0.50092572,105410.0,105400.0,0.52521933]
[1749976250009,0.48195292,105410.0,105400.0,0.52521933]
[1749976250256,0.47246688,105410.0,105400.0,0.57216309]
[1749976250505,0.48195292,105410.0,105400.0,0.55576288]
[1749976250767,0.48195292,105410.0,105400.0,0.53976288]
[1749976250989,0.48195292,105410.0,105400.0,0.52195542]
[1749976251223,0.48195292,105410.0,105400.0,0.53976296]
[1749976251446,0.47246688,105410.0,105400.0,0.53976296]
[1749976251673,0.48195283,105410.0,105400.0,0.53976295]
[1749976252119,0.49143896,105410.0,105400.0,0.52195542]
[1749976252399,0.49143887,105410.0,105400.0,0.53976295]
[1749976252613,0.49143887,105410.0,105400.0,0.52195542]
[1749976252832,0.49143887,105410.0,105400.0,0.53976291]
[1749976253393,0.49143887,105410.0,105400.0,0.52195542]
[1749976253780,0.49143887,105410.0,105400.0,0.53976291]
[1749976254402,0.48195283,105410.0,105400.0,0.53976291]
[1749976255174,0.48195283,105410.0,105400.0,0.53976295]
[1749976255406,0.48195283,105410.0,105400.0,0.52195542]
[1749976255785,0.47246688,105410.0,105400.0,0.52195542]
[1749976256036,0.48195283,105410.0,105400.0,0.52195542]
[1749976257352,0.49143887,105410.0,105400.0,0.52195542]
[1749976257572,0.49143887,105410.0,105400.0,0.53976291]
[1749976258557,0.48195283,105410.0,105400.0,0.5397629]
[1749976258734,0.48195292,105410.0,105400.0,0.52195542]
[1749976259014,0.48195292,105410.0,105400.0,0.53976286]
[1749976259291,0.48195292,105410.0,105400.0,0.52195542]
[1749976259503,0.02683021,105410.0,105400.0,0.645562]
[1749976259709,0.00409008,105410.0,105400.0,0.88035123]
[1749976259915,0.00409008,105410.0,105400.0,1.0911165]
[1749976260128,0.00409008,105410.0,105400.0,1.07331123]
[1749976260329,0.00409008,105410.0,105400.0,1.0911137]
[1749976260548,0.00409008,105410.0,105400.0,1.09111371]
[1749976260749,0.00309008,105410.0,105400.0,1.07331123]
[1749976260948,9.008e-05,105410.0,105400.0,0.64547709]
[1749976261157,9.008e-05,105410.0,105400.0,1.09211377]
[1749976261315,0.00109008,105410.0,105400.0,1.09211377]
[1749976261725,0.00109008,105410.0,105400.0,1.09211381]
[1749976261946,0.00109008,105410.0,105400.0,1.07431123]
[1749976262166,0.00109008,105410.0,105400.0,1.09211379]
[1749976262365,0.00109008,105410.0,105400.0,1.09211381]
[1749976262563,0.00109008,105410.0,105400.0,1.0921138]
[1749976262800,0.00109008,105410.0,105400.0,1.07431123]
[1749976262934,0.00109008,105410.0,105400.0,1.09211375]
[1749976263469,0.00109008,105410.0,105400.0,1.09200329]
[1749976263673,0.00109008,105410.0,105400.0,1.07431123]
[1749976263841,0.00109008,105410.0,105400.0,1.09200329]
[1749976264627,0.00109008,105410.0,105400.0,1.07431123]
[1749976264834,0.00109008,105410.0,105400.0,1.09200329]
[1749976265247,0.00109008,105410.0,105400.0,1.07431123]
[1749976265673,0.00109008,105410.0,105400.0,1.09200329]
[1749976265889,0.00109008,105410.0,105400.0,1.07431123]
[1749976266070,0.00109008,105410.0,105400.0,1.09200329]
[1749976266538,0.00109008,105410.0,105400.0,1.07431123]
[1749976266742,0.00109008,105410.0,105400.0,1.09200329]
[1749976267366,0.00109008,105410.0,105400.0,1.09200321]
[1749976267573,0.00109008,105410.0,105400.0,1.09200306]
[1749976267791,0.00109008,105410.0,105400.0,1.07431123]
[1749976268434,0.00109008,105410.0,105400.0,1.09200315]
[1749976268634,0.00109008,105410.0,105400.0,1.07431123]
[1749976269129,0.00109008,105410.0,105400.0,1.09200328]
[1749976269335,0.00109008,105410.0,105400.0,1.07431123]
[1749976269543,0.00109008,105410.0,105400.0,1.09200304]
[1749976269781,0.00109008,105410.0,105400.0,1.07431123]
[1749976271338,0.00109008,105410.0,105400.0,1.12431123]
[1749976272992,0.00109008,105410.0,105400.0,1.14211198]
[1749976273237,0.00109008,105410.0,105400.0,1.142112]
[1749976274250,0.00109008,105410.0,105400.0,1.14211193]
[1749976274465,0.00109008,105410.0,105400.0,1.12431123]
[1749976274725,0.00109008,105410.0,105400.0,1.14211197]
[1749976274932,0.00109008,105410.0,105400.0,1.14211189]
[1749976275561,0.00109008,105410.0,105400.0,1.14211193]
[1749976275954,0.00109008,105410.0,105400.0,1.1421119]
[1749976276706,0.00109008,105410.0,105400.0,1.14207317]
[1749976276905,0.00109008,105410.0,105400.0,1.12431123]
[1749976277116,0.00109008,105410.0,105400.0,1.14207319]
[1749976277352,0.00109008,105410.0,105400.0,1.14207316]
[1749976277523,0.00109008,105410.0,105400.0,1.1420732]
[1749976278017,0.00109008,105410.0,105400.0,1.14207319]
[1749976278367,0.00109008,105410.0,105400.0,1.14207317]
[1749976278599,0.00109008,105410.0,105400.0,1.14207319]